lending/lending_fUSD_20251114
["ID","MTS","AMOUNT","RATE_DAILY","PERIOD"]
[393932530,1763104983990,-155.10328177,0.00016444,2]
[393932531,1763104984020,-500.0,0.00016444,2]
[393932532,1763104984051,-1402.46342725,0.00016544,2]
[393932533,1763104984082,-953.41076685,0.00016544,2]
[393932534,1763104984115,-257.84348094,0.00016544,2]
[393932535,1763104990166,-2536.53841906,0.00016544,2]
[393932536,1763104990200,-234.6662,0.00016544,2]
[393932537,1763104996294,-2446.36,0.00016587,2]
[393932538,1763104996428,-1244.90947036,0.00016587,2]
[393932539,1763105000823,12154.186187,0.00030137,120]
[393932540,1763105119720,620.52893851,9e-05,2]
[393932541,1763105120651,-288.67305142,0.000154,2]
[393932542,1763105122873,-449.34981822,0.000154,2]
[393932543,1763105125163,-500.0,0.000154,2]
[393932544,1763105125286,1020.1245818,0.000108,2]
[393932545,1763105127639,-177.03985575,0.000154,2]
[393932546,1763105129261,-159.46214866,0.000154,2]
[393932547,1763105130783,-306.94080328,0.000154,2]
[393932549,1763105134396,-205.30907325,0.000154,2]
[393932550,1763105135814,6671.75565922,0.0001,2]
[393932551,1763105135842,-424.24687334,0.000154,2]
[393932552,1763105137956,-192.67157439,0.000154,2]
[393932553,1763105140188,-208.4598231,0.000154,2]
[393932554,1763105142323,-500.0,0.000154,2]
[393932555,1763105144102,-216.83589604,0.000154,2]
[393932556,1763105145611,-151.0,0.000154,2]
[393932557,1763105149743,-191.59030218,0.000154,2]
[393932558,1763105153156,-225.60086673,0.000154,2]
[393932559,1763105156811,-310.08517717,0.000154,2]
[393932560,1763105159845,-414.38408271,0.000154,2]
[393932561,1763105160489,3054.39319325,8e-05,2]
[393932562,1763105160512,14107.13263363,8e-05,2]
[393932563,1763105161795,-300.0,0.00015399,2]
[393932564,1763105161818,-33.0,0.000154,2]
[393932565,1763105163396,-175.78037537,0.000154,2]
[393932566,1763105164255,5892.86736637,0.00011,2]
[393932567,1763105164286,3460.46205538,0.00011,2]
[393932568,1763105169605,-268.31529121,0.000154,2]
[393932569,1763105171065,-337.33241199,0.000154,2]
[393932570,1763105171378,-1687.60082047,0.000154,2]
[393932571,1763105171656,-868.61476243,0.000154,2]
[393932572,1763105171686,-8262.78047514,0.000154,2]
[393932573,1763105174096,-151.3778899,0.000154,2]
[393932574,1763105174301,-10000.01,0.000154,2]
[393932575,1763105180320,-42.70758913,0.000154,2]
[393932576,1763105180351,-250.0,0.00015712,2]
[393932577,1763105180611,-9414.59482174,0.00016023,2]
[393932578,1763105185508,2031.207984,0.00015,2]
[393932579,1763105186491,-10000.01,0.00016023,2]
[393932580,1763105213271,5932.80640293,0.000162,5]
[393932581,1763105219988,157.37,0.00030137,120]
[393932582,1763105221244,-821.29878989,0.00016,2]
[393932583,1763105221290,-8357.41242022,0.00016023,2]
[393932584,1763105221824,-10000.01,0.00016023,2]
[393932585,1763105221940,-10000.01,0.00016023,2]
[393932586,1763105222175,1000.0,0.0003,120]
[393932587,1763105227019,-48.00275804,0.00016023,2]
[393932588,1763105227083,-9904.00448392,0.00016047,2]
[393932589,1763105227134,-2451.73551608,0.00016047,2]
[393932590,1763105227166,-342.8479113,0.00016195,2]
[393932591,1763105227196,-150.0,0.00016423,2]
[393932592,1763105227227,-248.4626156,0.00016587,2]
[393932593,1763105227298,-3613.91791404,0.00016587,2]
[393932594,1763105227357,-3873.81,0.00016623,2]
[393932595,1763105227382,-2252.39,0.00016623,2]
[393932596,1763105228176,1800.445832,7.945e-05,2]
[393932597,1763105229953,250.0,8.74e-05,2]
[393932598,1763105230067,250.0,0.0001229,2]
[393932600,1763105265532,12574.29679278,0.00013,15]
[393932602,1763105294400,1917.36471183,0.0001,2]
[393932604,1763105297643,4052.66660278,0.00015,2]
[393932607,1763105305969,2714.89204072,0.0001,2]
[393932610,1763105308472,-178.67178634,0.00016544,2]
[393932611,1763105308761,-1053.0202,0.00016544,2]
[393932612,1763105308793,-250.0,0.00016589,2]
[393932614,1763105308824,-151.0,0.00016634,2]
[393932615,1763105308854,-151.0,0.00016634,2]
[393932616,1763105308890,-151.0,0.00016634,2]
[393932617,1763105308921,-151.0,0.00016634,2]
[393932618,1763105308952,-151.0,0.00016634,2]
[393932619,1763105308982,-196.95426755,0.00016634,2]
[393932620,1763105309014,-151.0,0.00016634,2]
[393932621,1763105309045,-151.0,0.00016634,2]
[393932622,1763105309075,-184.58011697,0.00016634,2]
[393932623,1763105309104,-538.0,0.00016642,2]
[393932624,1763105309142,-500.0,0.00016643,2]
[393932625,1763105309175,-500.0,0.00016643,2]
[393932626,1763105309207,-500.0,0.00016643,2]
[393932627,1763105309294,-500.0,0.00016643,2]
[393932628,1763105309327,-500.0,0.00016643,2]
[393932629,1763105309360,-350.0,0.00016643,2]
[393932630,1763105309392,-318.92665692,0.00016643,2]
[393932631,1763105309425,-500.0,0.00016643,2]
[393932632,1763105309458,-500.0,0.00016643,2]
[393932633,1763105309490,-318.92665692,0.00016643,2]
[393932634,1763105309527,-500.0,0.00016643,2]
[393932635,1763105309560,-318.92665692,0.00016643,2]
[393932636,1763105309598,-226.39817232,0.00016643,2]
[393932637,1763105309628,-500.0,0.00016643,2]
[393932638,1763105309660,-241.03622636,0.00016643,2]
[393932639,1763105309689,-41.92741121,0.00016643,2]
[393932640,1763105310285,-41.62984707,0.00016643,2]
[393932641,1763105310301,-326.09659163,0.00016643,2]
[393932642,1763105310310,-83.55725828,0.00016643,2]
[393932643,1763105310590,-210.1083067,0.00016643,2]
[393932644,1763105311579,-206.33443502,0.00016643,2]
[393932645,1763105311616,-318.92665692,0.00016643,2]
[393932646,1763105311654,-500.0,0.00016643,2]
[393932647,1763105311690,-318.92665692,0.00016643,2]
[393932648,1763105311727,-500.0,0.00016643,2]
[393932649,1763105311763,-318.92665692,0.00016643,2]
[393932650,1763105311797,-500.0,0.00016643,2]
[393932651,1763105311832,-500.0,0.00016643,2]
[393932652,1763105311870,-500.0,0.00016643,2]
[393932653,1763105311908,-500.0,0.00016643,2]
[393932654,1763105311943,-327.95776406,0.00016643,2]
[393932655,1763105312141,-1017.86566032,0.00016644,2]
[393932658,1763105313099,13300.0,0.0003,120]
[393932662,1763105314391,-10000.01,0.00016644,2]
[393932663,1763105315338,133522.96077329,0.00015,3]
[393932664,1763105315366,35699.95059858,0.00015,3]
[393932667,1763105316117,4300.04940142,0.00015,2]
[393932671,1763105317877,-4833.46109713,0.00015,2]
[393932672,1763105317919,-333.08780574,0.00016644,2]
[393932674,1763105320902,-10000.01,0.00016644,2]
[393932675,1763105323937,-10000.01,0.00016644,2]
[393932687,1763105432109,-1599.45862173,0.00016436,2]
[393932688,1763105432120,-434.70137827,0.00016436,2]
[393932689,1763105432130,-1962.77,0.00016453,2]
[393932690,1763105432139,-848.86654012,0.00016544,2]
[393932691,1763105432150,-473.35270869,0.00016544,2]
[393932692,1763105432159,-1551.42615798,0.00016544,2]
[393932693,1763105432167,-300.0,0.00016564,2]
[393932694,1763105432176,-200.0,0.00016583,2]
[393932695,1763105432185,-300.0,0.00016612,2]
[393932696,1763105432194,-300.0,0.00016643,2]
[393932697,1763105432203,-500.0,0.00016643,2]
[393932698,1763105432211,-500.0,0.00016643,2]
[393932699,1763105432220,-500.0,0.00016643,2]
[393932700,1763105432230,-500.0,0.00016643,2]
[393932701,1763105432249,-4635.88767333,0.00016644,2]
[393932702,1763105432261,-331.96,0.00016644,2]
[393932703,1763105432273,-507.72137827,0.00016644,2]
[393932729,1763105438107,-3357.83562371,0.00016644,2]
[393932730,1763105438145,-2080.12409433,0.00016644,2]
[393932731,1763105438157,-374.12,0.00016644,2]
[393932887,1763105440139,-2066.35554326,0.00016644,2]
[393932899,1763105440188,-487.275,0.00016644,2]
[393932919,1763105441874,-1.7e-07,0.00016644,2]
[393932932,1763105445545,-447.76376757,0.00016644,2]
[393932934,1763105445558,-7041.69875425,0.00016644,2]
[393932935,1763105445572,-361.29355304,0.00016644,2]
[393932936,1763105445587,-2596.99769271,0.00016644,2]
[393932937,1763105445598,-581.49721858,0.00016644,2]
[393932938,1763105445615,-872.38278142,0.00016644,2]
[393932939,1763105445627,-525.52378603,0.00016644,2]
[393932940,1763105445640,-474.46621397,0.00016644,2]
[393932941,1763105445653,-150.99,0.00016644,2]
[393932942,1763105445667,-643.07695289,0.00016644,2]
[393932943,1763105445681,-660.03612286,0.00016644,2]
[393932944,1763105445695,-1525.01104701,0.00016644,2]
[393932945,1763105445709,-1609.83697768,0.00016644,2]
[393932946,1763105445722,-893.08493806,0.00016644,2]
[393932947,1763105445735,-826.87559871,0.00016644,2]
[393932948,1763105445751,-636.52741507,0.00016644,2]
[393932949,1763105445764,-385.66577181,0.00016644,2]
[393932956,1763105446304,-1186.10579435,0.00016644,2]
[393932957,1763105446465,-4176.13789208,0.00016644,2]
[393932958,1763105446479,-976.705302,0.00016644,2]
[393932959,1763105446502,-21408.46804593,0.00016644,2]
[393932963,1763105485190,-1862.32,0.00016506,2]
[393932964,1763105485215,-6275.37,0.00016506,2]
[393932965,1763105488243,-300.0,0.00016643,2]
[393932966,1763105488281,-327.95776406,0.00016643,2]
[393932967,1763105488314,-300.0,0.00016644,2]
[393932968,1763105496560,646.65493446,0.00016643,2]
[393932969,1763105499074,260.14419155,0.00016544,2]
[393932970,1763105499314,-453.0,0.00016644,2]
[393932971,1763105515029,-620.85979947,0.00016644,2]
[393932972,1763105517449,-199.04374874,0.00016644,2]
[393932973,1763105519729,-254.97292479,0.00016644,2]
[393932974,1763105521749,-155.02937855,0.00016644,2]
[393932975,1763105524327,-174.24949901,0.00016644,2]
[393932976,1763105526188,500.0,0.00041088,30]
[393932977,1763105526790,500.0,0.00041088,30]
[393932978,1763105527559,500.0,0.00041088,30]
[393932979,1763105527776,-353.88057942,0.00016644,2]
[393932980,1763105528018,500.0,0.00041088,30]
[393932981,1763105528240,151.0,0.00041088,30]
[393932982,1763105528650,500.0,0.00041088,30]
[393932983,1763105528856,151.0,0.00041088,30]
[393932984,1763105529246,500.0,0.00041088,30]
[393932985,1763105529450,151.0,0.00041088,30]
[393932986,1763105529851,500.0,0.00041088,30]
[393932987,1763105530062,151.0,0.00041088,30]
[393932988,1763105530485,500.0,0.00041088,30]
[393932989,1763105530688,151.0,0.00041088,30]
[393932990,1763105530822,151.0,0.00016634,2]
[393932991,1763105531042,500.0,0.00041088,30]
[393932992,1763105531342,151.0,0.00041088,30]
[393932993,1763105531481,151.0,0.00016634,2]
[393932994,1763105531621,500.0,0.00041088,30]
[393932995,1763105531687,500.0,0.00041088,30]
[393932996,1763105531720,-644.52015007,0.00016644,2]
[393932997,1763105531940,151.0,0.00041088,30]
[393932998,1763105532090,151.0,0.00016634,2]
[393932999,1763105532258,500.0,0.00041088,30]
[393933000,1763105532338,500.0,0.00041088,30]
[393933001,1763105532647,151.0,0.00041088,30]
[393933002,1763105532744,500.0,0.00016507,2]
[393933003,1763105532889,500.0,0.00041088,30]
[393933004,1763105532967,500.0,0.00041088,30]
[393933005,1763105533354,151.0,0.00041088,30]
[393933006,1763105533578,500.0,0.00041088,30]
[393933007,1763105534219,500.0,0.00041088,30]
[393933008,1763105534819,500.0,0.00041088,30]
[393933009,1763105535511,500.0,0.00041088,30]
[393933010,1763105536132,500.0,0.00041088,30]
[393933011,1763105536830,500.0,0.00041088,30]
[393933012,1763105537917,500.0,0.00041088,30]
[393933013,1763105543758,-242.2207932,0.00016644,2]
[393933014,1763105548563,-151.0,0.00016644,2]
[393933015,1763105550097,-151.0,0.00016644,2]
[393933016,1763105551953,-275.21913048,0.00016644,2]
[393933017,1763105553263,500.0,0.00016644,2]
[393933018,1763105559248,-266.0104979,0.00016644,2]
[393933019,1763105562232,-240.95229451,0.00016644,2]
[393933020,1763105565158,-389.29261928,0.00016644,2]
[393933021,1763105565550,689.17,0.00016419,2]
[393933022,1763105567878,646.65493446,0.00016643,2]
[393933023,1763105569994,1439.72,0.00016483,2]
[393933024,1763105573861,-178.86137391,0.00016644,2]
[393933025,1763105577612,-151.0,0.00016644,2]
[393933026,1763105579829,-158.5068257,0.00016644,2]
[393933027,1763105581520,-208.5940214,0.00016644,2]
[393933028,1763105583052,-156.66465127,0.00016644,2]
[393933029,1763105585212,-160.91847526,0.00016644,2]
[393933030,1763105587166,500.0,0.00016643,2]
[393933031,1763105587221,500.0,0.00016643,2]
[393933032,1763105587275,293.30986892,0.00016643,2]
[393933033,1763105589952,-302.13720618,0.00016644,2]
[393933034,1763105592190,-207.96889202,0.00016644,2]
[393933035,1763105593802,-268.73933241,0.00016644,2]
[393933036,1763105595646,-166.65807418,0.00016644,2]
[393933037,1763105598551,-261.47249247,0.00016644,2]
[393933038,1763105600221,-277.40507897,0.00016644,2]
[393933039,1763105612813,500.0,0.00041088,30]
[393933040,1763105613036,533.29315142,0.00041088,30]
[393933041,1763105618892,1715.44054249,0.00016544,2]
[393933042,1763105618919,10000.01,0.00016544,2]
[393933043,1763105618945,10000.01,0.00016544,2]
[393933044,1763105618971,10000.01,0.00016544,2]
[393933045,1763105618996,10000.01,0.00016544,2]
[393933046,1763105619022,10000.01,0.00016544,2]
[393933047,1763105619260,10000.01,0.00016544,2]
[393933048,1763105619290,10000.01,0.00016544,2]
[393933049,1763105619317,10000.01,0.00016544,2]
[393933050,1763105619343,10000.01,0.00016544,2]
[393933051,1763105627087,1372.52,0.00041088,30]
[393933052,1763105627329,1372.52,0.00041088,30]
[393933053,1763105627573,1372.52,0.00041088,30]
[393933054,1763105627812,1372.52,0.00041088,30]
[393933055,1763105628068,1372.52,0.00041088,30]
[393933056,1763105628310,1372.52,0.00041088,30]
[393933057,1763105628552,1372.52,0.00041088,30]
[393933058,1763105628787,1372.52,0.00041088,30]
[393933059,1763105629061,1372.52,0.00041088,30]
[393933060,1763105629311,1372.52,0.00041088,30]
[393933061,1763105629615,1372.52,0.00041088,30]
[393933062,1763105629875,1372.52,0.00041088,30]
[393933063,1763105630120,1372.52,0.00041088,30]
[393933064,1763105630355,1372.52,0.00041088,30]
[393933065,1763105630597,1372.52,0.00041088,30]
[393933066,1763105630888,1372.52,0.00041088,30]
[393933067,1763105631164,1372.52,0.00041088,30]
[393933068,1763105631395,1372.52,0.00041088,30]
[393933069,1763105631683,1372.52,0.00041088,30]
[393933070,1763105631948,1372.52,0.00041088,30]
[393933071,1763105632198,1372.52,0.00041088,30]
[393933072,1763105632421,1372.52,0.00041088,30]
[393933073,1763105632706,1372.52,0.00041088,30]
[393933074,1763105633304,1372.70217208,0.00041088,30]
[393933075,1763105634951,3278.55,0.00016438,2]
[393933076,1763105641986,300.0,0.00016543,2]
[393933077,1763105674401,190.40046305,0.00016543,2]
[393933078,1763105674448,500.0,0.00016543,2]
[393933079,1763105674508,441.56811667,0.00016543,2]
[393933080,1763105678205,152.60759887,0.00016543,2]
[393933081,1763105692267,158.489975,0.00041088,120]
[393933082,1763105692638,158.489975,0.00041088,120]
[393933083,1763105693125,158.489975,0.00041088,120]
[393933084,1763105693470,158.489975,0.00041088,120]
[393933085,1763105694114,153.987858,0.00041088,120]
[393933086,1763105694174,154.975601,0.00041088,120]
[393933087,1763105694452,153.987858,0.00041088,120]
[393933088,1763105694565,154.975601,0.00041088,120]
[393933089,1763105695047,154.975601,0.00041088,120]
[393933090,1763105695450,154.975601,0.00041088,120]
[393933091,1763105696659,151.805665,0.00041088,120]
[393933092,1763105696985,151.805665,0.00041088,120]
[393933093,1763105697319,151.805665,0.00041088,120]
[393933094,1763105697656,151.805665,0.00041088,120]
[393933095,1763105698015,151.805665,0.00041088,120]
[393933096,1763105698344,151.805665,0.00041088,120]
[393933097,1763105698704,151.805665,0.00041088,120]
[393933098,1763105755186,5136.88382141,0.00016444,2]
[393933099,1763105755211,7145.24207859,0.00016444,2]
[393933100,1763105761746,300.0,0.00016543,2]
[393933101,1763105765745,282.227297,0.00016461,2]
[393933102,1763105773627,1000.0,0.00016444,2]
[393933103,1763105779274,227.62616765,0.00016444,2]
[393933104,1763105780095,150.0,0.00016415,2]
[393933106,1763105821347,300.0,0.00016543,2]
[393933107,1763105843749,-286.91391834,0.00016544,2]
[393933108,1763105847847,-242.05258459,0.00016544,2]
[393933109,1763105851370,-166.08608166,0.00016544,2]
[393933110,1763105854155,-300.0,0.00016544,2]
[393933111,1763105858041,-374.38120448,0.00016544,2]
[393933112,1763105881563,300.0,0.00016543,2]
[393933113,1763105888795,-197.72800362,0.00016544,2]
[393933114,1763105899658,294.91445676,0.00016444,2]
[393933115,1763105899682,205.08554324,0.00016444,2]
[393933116,1763105924443,3754.03546754,0.00016444,2]
[393933117,1763105947541,-1000.0,0.00017,17]
[393933118,1763105967415,179.060057,0.00016461,2]
[393933119,1763105968574,-700.0,0.000171,6]
[393933120,1763105977561,-207.0,0.000172,6]
[393933121,1763105991944,-195.0,0.00016544,2]
[393933122,1763106004012,1171.56,0.00016534,2]
[393933123,1763106006032,4690.26893222,0.00016534,2]
[393933124,1763106006057,10000.01,0.00016534,2]
[393933125,1763106006082,4087.92106778,0.00016534,2]
[393933126,1763106025004,166.66,0.00015474,2]
[393933127,1763106025220,166.66,0.00015799,2]
[393933128,1763106025685,166.66,0.00016125,2]
[393933129,1763106025726,166.66,0.00016451,2]
[393933130,1763106055409,500.0,0.00016544,2]
[393933132,1763106064634,277.54519443,0.00016444,2]
[393933134,1763106067045,388.5551,0.00016444,2]
[393933135,1763106071245,500.0,0.00016544,2]
[393933137,1763106098866,-277.89872544,0.00016544,2]
[393933138,1763106103712,2833.33,0.00041087,30]
[393933139,1763106103964,2833.33,0.00041087,30]
[393933140,1763106104231,2833.33,0.00041087,30]
[393933141,1763106104478,2833.33,0.00041087,30]
[393933142,1763106104849,2833.33,0.00041087,30]
[393933143,1763106105098,2833.33,0.00041087,30]
[393933144,1763106105374,2833.33,0.00041087,30]
[393933145,1763106105623,2833.33,0.00041087,30]
[393933146,1763106106103,2833.33,0.00041087,30]
[393933147,1763106106174,2833.33,0.00041087,30]
[393933148,1763106106423,2833.33,0.00041087,30]
[393933149,1763106106918,2833.33,0.00041087,30]
[393933150,1763106107092,2833.33,0.00041087,30]
[393933151,1763106107354,2833.33,0.00041087,30]
[393933152,1763106107603,2833.33,0.00041087,30]
[393933153,1763106107870,2833.33,0.00041087,30]
[393933154,1763106108127,2833.33,0.00041087,30]
[393933155,1763106108373,2833.33,0.00041087,30]
[393933156,1763106108788,2833.33,0.00041087,30]
[393933157,1763106109033,2833.33,0.00041087,30]
[393933158,1763106109327,2833.33,0.00041087,30]
[393933159,1763106109557,2833.33,0.00041087,30]
[393933160,1763106109802,2833.33,0.00041087,30]
[393933161,1763106109838,277.89872544,0.00016543,2]
[393933162,1763106110077,2833.40999994,0.00041087,30]
[393933164,1763106123450,866.37020519,0.00016203,2]
[393933165,1763106128748,151.0,0.00016544,2]
[393933166,1763106129374,151.0,0.00016544,2]
[393933167,1763106130174,151.0,0.00016544,2]
[393933168,1763106130838,151.0,0.00016544,2]
[393933169,1763106131923,151.0,0.00016544,2]
[393933170,1763106132597,151.0,0.00016544,2]
[393933171,1763106133219,151.0,0.00016544,2]
[393933172,1763106133827,151.0,0.00016544,2]
[393933173,1763106134463,151.0,0.00016544,2]
[393933174,1763106135075,151.0,0.00016544,2]
[393933175,1763106135724,151.0,0.00016544,2]
[393933176,1763106136399,151.0,0.00016544,2]
[393933177,1763106137037,151.0,0.00016544,2]
[393933178,1763106137719,244.22176105,0.00016544,2]
[393933179,1763106150065,-2083.77347423,0.00016544,2]
[393933180,1763106152882,-10000.01,0.00016544,2]
[393933181,1763106153006,-10000.01,0.00016544,2]
[393933182,1763106161174,2500.0,0.00016444,2]
[393933183,1763106188766,-164.65519607,0.00016544,2]
[393933184,1763106190991,-280.32726495,0.00016544,2]
[393933185,1763106249697,250.0,0.00016313,2]
[393933186,1763106278674,-260.34968263,0.00016544,2]
[393933187,1763106281346,-197.10971327,0.00016544,2]
[393933188,1763106283951,-176.8,0.00016544,2]
[393933189,1763106285717,-230.91790741,0.00016544,2]
[393933190,1763106288426,-198.6637194,0.00016544,2]
[393933191,1763106301674,1200.0,0.00016543,2]
[393933192,1763106315227,204.21,0.00016328,2]
[393933194,1763106345190,242.85204517,0.00016444,2]
[393933195,1763106359638,500.0,0.00016544,2]
[393933196,1763106368710,-266.99466597,0.00016544,2]
[393933197,1763106372926,-155.39013836,0.00016544,2]
[393933198,1763106412732,500.0,0.00016544,2]
[393933199,1763106413996,500.0,0.00016543,2]
[393933200,1763106415485,401.72092243,0.00016544,2]
[393933201,1763106425848,745.83987,0.0001651,2]
[393933202,1763106425990,745.83987,0.0001653,2]
[393933203,1763106426120,745.83988,0.0001653,2]
[393933204,1763106426175,745.83987,0.0001653,2]
[393933205,1763106428174,200.0,0.00015789,2]
[393933206,1763106428702,-341.17944755,0.00016544,2]
[393933207,1763106429820,500.0,0.00016544,2]
[393933208,1763106434483,17.8675424,0.00016544,2]
[393933209,1763106434512,482.1324576,0.00016544,2]
[393933210,1763106434718,3378.63192075,0.00016444,2]
[393933211,1763106453807,500.0,0.00016544,2]
[393933212,1763106458737,-279.11280282,0.00016544,2]
[393933213,1763106467313,500.0,0.00016544,2]
[393933214,1763106479844,500.0,0.00016544,2]
[393933216,1763106497175,1000.0,0.00016331,2]
[393933217,1763106503676,-210.5688599,0.00016544,2]
[393933218,1763106520372,-241.56188919,0.00016544,2]
[393933219,1763106521554,247.05,0.00016544,2]
[393933220,1763106522095,-168.63131763,0.00016544,2]
[393933221,1763106522663,500.0,0.00016544,2]
[393933222,1763106525300,-174.93611104,0.00016544,2]
[393933223,1763106533690,-240.11061844,0.00016544,2]
[393933224,1763106536542,-163.68527077,0.00016544,2]
[393933225,1763106538175,-244.83522882,0.00016544,2]
[393933226,1763106539889,-224.40333237,0.00016544,2]
[393933227,1763106542369,-194.44334265,0.00016544,2]
[393933228,1763106543978,-168.63131763,0.00016544,2]
[393933229,1763106547673,-160.26215429,0.00016544,2]
[393933230,1763106550585,-215.33977821,0.00016544,2]
[393933231,1763106552421,-195.0,0.00016544,2]
[393933232,1763106555891,-160.76297548,0.00016544,2]
[393933233,1763106558356,-275.7841514,0.00016544,2]
[393933234,1763106560847,-165.30978099,0.00016544,2]
[393933237,1763106565988,-217.4887708,0.00016544,2]
[393933238,1763106568286,-369.44081654,0.00016544,2]
[393933239,1763106570322,-237.49216763,0.00016544,2]
[393933240,1763106572195,-503.24610906,0.00016544,2]
[393933241,1763106574454,-151.0,0.00016544,2]
[393933242,1763106577391,-235.83628921,0.00016544,2]
[393933243,1763106579489,196.29872544,0.00016544,2]
[393933244,1763106581990,-304.75124917,0.00016544,2]
[393933245,1763106583541,-170.27333368,0.00016544,2]
[393933246,1763106593892,-319.93358709,0.00016544,2]
[393933247,1763106602184,151.0,0.000165,2]
[393933248,1763106603375,302.0,0.00016544,2]
[393933249,1763106605960,2242.89689621,0.00016534,2]
[393933250,1763106605986,7146.20310379,0.00016534,2]
[393933251,1763106625230,212.49553948,0.00016544,2]
[393933265,1763106632364,-1903.62987532,0.00016544,2]
[393933268,1763106632421,-477.36628802,0.00016544,2]
[393933270,1763106632475,-7413.19390163,0.00016544,2]
[393933271,1763106632487,-173282.76087704,0.00016544,2]
[393933272,1763106632501,-49596.63649205,0.00016544,2]
[393933273,1763106632536,-4041.16407892,0.00016544,2]
[393933274,1763106632961,-39052.11694391,0.00016544,2]
[393933275,1763106632974,-1162.29844913,0.00016544,2]
[393933276,1763106632985,-485.005,0.00016544,2]
[393933277,1763106633014,-18481.21456871,0.00016544,2]
[393933278,1763106633024,-1000.0,0.00016544,2]
[393933279,1763106633033,-250.0,0.00016545,2]
[393933280,1763106633043,-300.0,0.00016545,2]
[393933282,1763106633052,-195.0,0.00016546,2]
[393933284,1763106633061,-338.57656952,0.000166,2]
[393933287,1763106633074,-3378.6319207,0.00016606,2]
[393933289,1763106633083,-238.36,0.00016644,2]
[393933291,1763106633092,-993.27343,0.00016644,2]
[393933293,1763106633101,-18150.12,0.00016676,2]
[393933295,1763106633110,-150.99,0.00016712,2]
[393933297,1763106633119,-9999.99,0.00016712,2]
[393933299,1763106633128,-190.84,0.00016712,2]
[393933301,1763106633138,-212.49553947,0.00016738,2]
[393933303,1763106633147,-2084.49171175,0.0001676,2]
[393933305,1763106633156,-3378.6319207,0.00016768,2]
[393933307,1763106633165,-166.66,0.00016777,2]
[393933309,1763106633175,-198.0,0.000168,2]
[393933311,1763106633184,-9053.23608611,0.00016832,2]
[393933313,1763106633193,-166.66,0.00016874,2]
[393933315,1763106633203,-2084.49171166,0.00016887,2]
[393933317,1763106633212,-176.48461054,0.00016911,2]
[393933319,1763106633222,-238.36,0.00016918,2]
[393933321,1763106633231,-3378.6319207,0.00016929,2]
[393933323,1763106633241,-202.18,0.00016941,2]
[393933325,1763106633253,-255.72,0.00016971,2]
[393933327,1763106633263,-153.88483671,0.00016973,2]
[393933329,1763106633272,-501.20341473,0.00016973,2]
[393933331,1763106633282,-500.0,0.00016973,2]
[393933333,1763106633291,-500.0,0.00016973,2]
[393933335,1763106633307,-9521.9,0.00016986,2]
[393933337,1763106633325,-999.0,0.00016994,3]
[393933339,1763106633336,-250.0,0.00017,2]
[393933341,1763106633345,-98913.29391126,0.00017,2]
[393933343,1763106633354,-230.0,0.00017011,2]
[393933345,1763106633364,-2084.49171166,0.00017013,2]
[393933347,1763106633373,-230.0,0.00017028,2]
[393933349,1763106633383,-230.0,0.00017043,2]
[393933351,1763106633392,-3378.6319207,0.00017091,2]
[393933353,1763106633402,-800.0,0.000171,6]
[393933355,1763106633411,-166.66,0.00017102,2]